Cogmind - Beta 16 @@@ ROGUE MODE // 2025.12.17 @ 12:39:10 Player: C0-2MO Result: Destroyed by TX-Y35(R) with Subdweller Laser Performance ------------- Evolutions (0) 0 Regions Visited (3) 600 Robots Destroyed (10) 50 Value Destroyed (136) 136 Prototype IDs (1) 20 Alien Tech Used (0) 0 Bonus (0) 0 TOTAL SCORE: 806 Bonus ------- None Cogmind --------- Core Integrity 0/250 Matter 260/300 Energy 93/100 System Corruption 0% Temperature Cool (6) Movement Core (50) Location -10/Subcaves Parts ------- > --- POWER (1) -------- (None) > --- PROPULSION (2) --- (None) > --- UTILITY (2) ------ (None) > --- WEAPON (2) ------- Light Assault Rifle Hammer > --- INVENTORY (5) ---- Light Ion Engine Experimental Sensor Array ECM Suite Datajack Peak State ------------ > --- POWER ------------ (None) > --- PROPULSION ------- Hover Unit Flight Unit > --- UTILITY ---------- Experimental Sensor Array Seismic Detector > --- WEAPON ----------- Light Assault Rifle Hammer > --- INVENTORY -------- Light Ion Engine ECM Suite Light Armor Plating Light Assault Rifle Datajack [Rating: 14] Favorites ----------- Power None Propulsion Flight Unit Treads Light Treads Hover Unit Hover Unit Flight Unit Flight Unit Utility Seismic Detector Device Seismic Detector Hackware Hacking Suite Protection Light Armor Plating Weapon Light Assault Rifle Ballistic Gun Light Assault Rifle Impact Weapon Hammer Build | -11 -10 -10 -10 ------- Run | Yrd Mat Min Sub Slots Evolved . | . . . . Power . | . . . . Propulsion . | . . . . Utility . | . . . . Weapon . | . . . . Parts Attached 13 | 4 7 1 1 Power . | . . . . Engine . | . . . . Core . | . . . . Reactor . | . . . . Propulsion 5 | 2 3 . . Treads 2 | 2 . . . Leg . | . . . . Wheel . | . . . . Hover 1 | . 1 . . Flight 2 | . 2 . . Utility 4 | . 2 1 1 Device 2 | . 1 1 . Storage . | . . . . Processor . | . . . . Hackware 1 | . 1 . . Protection 1 | . . . 1 Artifact . | . . . . Weapon 4 | 2 2 . . Energy Gun . | . . . . Energy Cannon . | . . . . Ballistic Gun 3 | 2 1 . . Ballistic Cannon . | . . . . Launcher . | . . . . Special Weapon . | . . . . Impact Weapon 1 | . 1 . . Slashing Weapon . | . . . . Piercing Weapon . | . . . . Special Melee Weapon . | . . . . Unidentified Prototypes 1 | . . 1 . Parts Lost 5 | . 1 . 4 Power . | . . . . Propulsion 3 | . 1 . 2 Utility 1 | . . . 1 Weapon 1 | . . . 1 Highest Loss Streak 4 | . 1 . 4 To Critical Strikes . | . . . . Average Backups 3 | 1 2 5 4 Power . | . 1 1 1 Propulsion . | . . . . Utility . | . . 2 1 Weapon . | . . 1 1 Tool/Special . | . . . . Unused Backups 3 | . . . 3 Power 1 | . . . 1 Propulsion . | . . . . Utility 1 | . . . 1 Weapon . | . . . . Tool/Special 1 | . . . 1 Average Slot Usage (%) 66 | . 64 71 70 Treads 4 | . 6 . . Hover 5 | . . 14 12 Flight 12 | . 12 14 11 Device 10 | . 9 14 8 Hackware 4 | . 7 . . Protection 1 | . . . 9 Ballistic Gun 20 | . 23 14 18 Impact Weapon 6 | . 4 14 9 Peak Build Rating 14 | 4 8 14 14 Average Rating 6 | 3 5 9 9 On Entrance 5 | . 4 5 13 Avg Prop Armor Cover (%) 15 | 27 21 11 6 Naked Turns . | . . . . Heaviest Build 6 | 3 4 4 6 Greatest Support 40 | 3 40 4 6 Greatest Overweight (x) 1 | . . . 1 Average Overweight (x) . | . . . . Largest Inventory Capacity 5 | 5 5 5 5 Average Capacity 5 | 5 5 5 5 Most Carried 5 | 2 5 5 5 Average Carried 3 | 1 2 5 4 Final Capacity 5 | 5 5 5 5 Final Carried 5 | 2 5 5 4 Class Distribution -------------------- 100% | Mutant Dominant Class ---------------- Mutant | -10/Materials Mutant | -10/Mines Mutant | -10/Subcaves Resources | -11 -10 -10 -10 ----------- Run | Yrd Mat Min Sub Matter Collected 463 | 272 181 10 . Remotely . | . . . . Salvage Created 302 | 73 229 . . Parts 18 | 7 11 . . Haulers Intercepted 2 | . 2 . . Recyclers Shooed 1 | 1 . . . Parts Field Recycled . | . . . . Retrieved Matter . | . . . . Parts Self-Destructed . | . . . . Prevented . | . . . . Parts Restored . | . . . . Kills | -11 -10 -10 -10 ------- Run | Yrd Mat Min Sub Combat Hostiles Destroyed 4 | . 4 . . Guns 4 | . 4 . . Classes Destroyed 7 | 2 5 . . Tunneler 1 | 1 . . . Hauler 2 | . 2 . . Recycler 1 | 1 . . . Operator 1 | . 1 . . Watcher 1 | . 1 . . Swarmer 3 | . 3 . . Grunt 1 | . 1 . . Best Kill Streak 4 | 1 4 . . Combat Bots Only 4 | . 4 . . Max Kills in Single Turn 1 | 1 1 . . Gunslinging . | . . . . Exploded . | . . . . Melee . | . . . . Uniques/NPCs Destroyed . | . . . . Combat | -11 -10 -10 -10 -------- Run | Yrd Mat Min Sub Hostile Shots Fired 73 | . 38 6 29 Missed 31 | . 19 4 8 Hits 42 | . 19 2 21 Projectile 42 | . 19 2 21 Critical Strikes 1 | . . . 1 Damage Taken 700 | . 234 29 437 Core 260 | . 67 29 164 Absorbed by Shields . | . . . . Core Remaining (%) 100 | 100 . . . Volleys Fired 22 | 8 14 . . Largest 2 | 2 2 . . Hottest 40 | 40 40 . . Shots Fired 44 | 16 28 . . Gun 44 | 16 28 . . Cannon . | . . . . Launcher . | . . . . Special . | . . . . Kinetic 44 | 16 28 . . Thermal . | . . . . Explosive . | . . . . Electromagnetic . | . . . . Robot Hit Streak 13 | 3 13 . . Robot Miss Streak 4 | 2 4 . . Penetration Max . | . . . . Secondary Targets 1 | . 1 . . Max Gunslinging Chain 1 | . 1 . . Shots Hit Robots 35 | 9 22 . 4 Core Hits 15 | 4 11 . . Critical Kills . | . . . . Critical Parts Destroyed 1 | . 1 . . Critical Strikes 1 | . 1 . . Smash 1 | . 1 . . Melee Attacks 51 | . 16 24 11 Impact 51 | . 16 24 11 Slashing . | . . . . Piercing . | . . . . Sneak Attacks 2 | . 2 . . Combat Hostiles . | . . . . Follow-up Attacks . | . . . . Damage Inflicted 539 | 91 347 . 101 Guns 289 | 91 198 . . Cannons . | . . . . Explosions . | . . . . Melee 250 | . 149 . 101 Ramming . | . . . . Kinetic 289 | 91 198 . . Thermal . | . . . . Explosive . | . . . . Electromagnetic . | . . . . Impact 250 | . 149 . 101 Slashing . | . . . . Piercing . | . . . . Highest Corruption . | . . . . Average Corruption . | . . . . Corruption Purged . | . . . . Corruption Blocked . | . . . . Overload Shots . | . . . . Overflow Damage 99 | . 99 . . Projectiles . | . . . . Explosions . | . . . . Melee 99 | . 99 . . Knockbacks 2 | . . . 2 Impact 2 | . . . 2 Kinetic . | . . . . Secondary . | . . . . Self-Inflicted Damage . | . . . . Shots . | . . . . Rammed . | . . . . Targets Rammed . | . . . . Kicked . | . . . . Crushed . | . . . . Highest Temperature 13 | . 13 . . Average Temperature 6 | . 6 . . Received Heat Transfer 240 | . 114 . 126 Siege Activations . | . . . . Martial Activations . | . . . . Shielding Activations . | . . . . Robots Disrupted . | . . . . Combat Hostiles . | . . . . Robots Corrupted 2 | . 2 . . Combat Hostiles . | . . . . Parts Fried 5 | . 5 . . Impact Corruptions 4 | . 4 . . Robots Melted . | . . . . Combat Hostiles . | . . . . Parts Melted . | . . . . Heat Transferred . | . . . . Parts Sabotaged . | . . . . Parts Stolen . | . . . . Parts Stripped . | . . . . Power Chain Reactions . | . . . . Alert | -11 -10 -10 -10 ------- Run | Yrd Mat Min Sub Maximum Alert Level 1 | . 1 . . Low Security (%) 90 | 100 87 100 . Level 1 9 | . 12 . . Level 2 . | . . . . Level 3 . | . . . . Level 4 . | . . . . Level 5 . | . . . . High Security . | . . . . Max Security . | . . . . Peak Influence 272 | 5 272 103 . Initial 102 | . . 102 . Average 101 | . 123 59 . Influence Increases 560 | 10 544 6 . Destroy 0b10 Robot/C 80 | . 80 . . Destroy 0b10 Robot/NC 30 | 10 20 . . Destroy Leader 26 | . 26 . . Successful Hack 34 | . 34 . . Select Force Hacks 60 | . 60 . . Disable Machine 15 | . 15 . . Destroy Structure 15 | . 9 6 . Partial Spotted 15 | . 15 . . Lose Combat Pursuer 285 | . 285 . . Influence Decreases 560 | 10 280 262 8 Entered New Map 167 | . . 162 5 Time Decay 383 | 10 270 100 3 Lost Part 10 | . 10 . . Squads Dispatched 3 | . 3 . . Investigation 2 | . 2 . . Extermination . | . . . . Reinforcement 1 | . 1 . . Assault . | . . . . Garrison . | . . . . Intercept . | . . . . Searches Triggered . | . . . . Construction Impeded . | . . . . Haulers Reinforced . | . . . . Active Scanning Responses . | . . . . Cargo Convoy Interrupts . | . . . . Stealth | -11 -10 -10 -10 --------- Run | Yrd Mat Min Sub Distress Signals 1 | . 1 . . Communications Jammed . | . . . . Distress Signals . | . . . . Times Spotted 48 | . 32 14 2 Peak Tracking Total 14 | . 7 14 2 Tactical Retreats 12 | . 10 2 . Traps | -11 -10 -10 -10 ------- Run | Yrd Mat Min Sub Traps Triggered 2 | . 2 . . Indirectly . | . . . . Trap Hack Attempts . | . . . . Triggered . | . . . . Disarmed . | . . . . Reprogrammed . | . . . . Reused . | . . . . Traps Extracted . | . . . . Installed . | . . . . Triggered . | . . . . Machines | -11 -10 -10 -10 ---------- Run | Yrd Mat Min Sub Machines Disabled 1 | . 1 . . Max in Single Turn 1 | . 1 . . Machines Repaired . | . . . . Machines Dismantled . | . . . . Machines Sabotaged . | . . . . Overloaded Fab Kills . | . . . . Hacking | -11 -10 -10 -10 --------- Run | Yrd Mat Min Sub Machines Accessed 10 | . 10 . . Terminals 7 | . 7 . . Fabricators . | . . . . Repair Stations 1 | . 1 . . Recycling Units 2 | . 2 . . Scanalyzers . | . . . . Garrison Access . | . . . . Total Hacks 30 | . 30 . . Successful 14 | . 14 . . Failed 16 | . 16 . . Catastrophic 1 | . 1 . . Database Lockouts . | . . . . Manual 30 | . 30 . . Terminals 25 | . 25 . . Fabricators . | . . . . Repair Stations 3 | . 3 . . Recycling Units 2 | . 2 . . Scanalyzers . | . . . . Garrison Access . | . . . . Terminal Hacks 3 | . 3 . . Robot Analysis 3 | . 3 . . Fabricator Hacks . | . . . . Repair Station Hacks . | . . . . Recycling Unit Hacks . | . . . . Scanalyzer . | . . . . Garrison Access Hacks . | . . . . Unauthorized Hacks 11 | . 11 . . Terminals 9 | . 9 . . Botnet 4 | . 4 . . Skim 5 | . 5 . . Fabricators . | . . . . Repair Stations . | . . . . Recycling Units 2 | . 2 . . Tunnel 2 | . 2 . . Scanalyzers . | . . . . Garrison Access . | . . . . Data Cores Recovered . | . . . . Used . | . . . . Hacking Detections 8 | . 8 . . Full Trace Events 1 | . 1 . . Feedback Events . | . . . . Feedback Blocked . | . . . . Robot Schematics Acquired . | . . . . Robots Built . | . . . . Authchips . | . . . . Time . | . . . . Total Robot Build Rating . | . . . . Part Schematics Acquired . | . . . . Parts Built . | . . . . Authchips . | . . . . Time . | . . . . Total Part Build Rating . | . . . . Part Studies Acquired . | . . . . Parts Repaired . | . . . . Time . | . . . . Parts Recycled . | . . . . Recycled Matter . | . . . . Retrieved Matter . | . . . . Retrieved Components . | . . . . Parts Scanalyzed . | . . . . Part Schematics Acquired . | . . . . Parts Damaged . | . . . . Bothacking | -11 -10 -10 -10 ------------ Run | Yrd Mat Min Sub Used RIF Installer . | . . . . Robots Hacked . | . . . . Non-combat . | . . . . Combat . | . . . . Robot Hacks Applied . | . . . . Relay Couplers Released . | . . . . Fabnet Peak Effective % . | . . . . Robots Rewired . | . . . . Allies Hacked . | . . . . Hacks Repelled . | . . . . Allies | -11 -10 -10 -10 -------- Run | Yrd Mat Min Sub Total Allies . | . . . . Largest Group . | . . . . Highest-Rated Group . | . . . . Highest-Rated Ally . | . . . . Total Orders . | . . . . Ally Attacks . | . . . . Total Damage . | . . . . Kills . | . . . . Allies Corrupted . | . . . . Allies Melted . | . . . . Intel | -11 -10 -10 -10 ------- Run | Yrd Mat Min Sub Active Infowar (turns) 693 | . 434 206 53 Sensors 161 | . . 108 53 Seismic 533 | . 434 99 . Robot Analysis Total 3 | . 3 . . Derelict Logs Recovered . | . . . . Drone Launches . | . . . . Drone Recoveries . | . . . . Exploration | -11 -10 -10 -10 ------------- Run | Yrd Mat Min Sub Turns Passed 988 | 53 635 206 94 Spaces Moved 1348 | 40 946 270 92 Core 249 | 40 199 . 10 Treads 1 | . 1 . . Legs . | . . . . Wheels . | . . . . Hover 50 | . . . 50 Flight 1048 | . 746 270 32 Fastest Speed 37 | 50 37 40 40 Average Speed 42 | 50 41 40 53 Slowest Speed 160 | 50 160 40 100 Overloaded Moves . | . . . . Propulsion Burnouts . | . . . . Robots Hopped 18 | . 16 2 . Potential Cave-ins . | . . . . Cave-ins Triggered . | . . . . Exploration Rate (%) 39 | 3 94 53 8 Regions Visited 3 Branch Regions 2 Pre-discovered Areas 4 | . 4 . . Known Exits Taken 1 | . . 1 . Unknown Exits Taken 2 | 1 1 . . Scrap Searched . | . . . . Spaces Dug 17 | . 9 7 1 Terrain Destroyed 17 | . 9 7 1 Melee 17 | . 9 7 1 Projectile . | . . . . AOE . | . . . . Terrain Rammed . | . . . . Walls Destroyed . | . . . . Machines Disabled . | . . . . Actions | -11 -10 -10 -10 --------- Run | Yrd Mat Min Sub Total 1604 | 56 1109 323 116 Wait 170 | 3 131 30 6 Move 1313 | 39 917 265 92 Hop 14 | . 12 2 . Pick Up 6 | 2 4 . . Fast Attach 13 | 4 8 1 . Attach 3 | . 1 . 2 Detach 1 | . . . 1 Swap 8 | . 4 . 4 Drop 3 | . 2 1 . Fire 22 | 8 14 . . Melee 51 | . 16 24 11 Ram . | . . . . Kick . | . . . . Crush . | . . . . Escape Stasis . | . . . . Rewire . | . . . . Trap . | . . . . Miscellaneous . | . . . . Route ------- -11/Scrapyard -10/Materials (discovered 5 exits: *Mat x3 / [*Min x2]) -10/Mines (discovered 3 exits: Mat x2 / *Sub) -10/Subcaves (discovered 1 exit: Mat) History --------- Turn | Location | Event 2 | -11/Scrapyard | Met Revision 17 9 | -11/Scrapyard | Discovered new exit (range 16) 54 | -11/Scrapyard | Entered Materials 126 | -10/Materials | Discovered new exit (range 6) 229 | -10/Materials | Discovered new exit (range 16) 309 | -10/Materials | Build established: Mutant 312 | -10/Materials | Discovered new exit (range 11) 337 | -10/Materials | Discovered new exit (range 9) 490 | -10/Materials | Discovered new exit (range 4) 513 | -10/Materials | Learned location of 2 exits from Mines 557 | -10/Materials | Learned Storage stockpile data 589 | -10/Materials | Learned location of 1 exit from Storage 623 | -10/Materials | Learned location of Mines (-8) 689 | -10/Materials | Entered Mines 690 | -10/Mines | Identified exit to Materials 691 | -10/Mines | Identified exit to Subcaves 786 | -10/Mines | Assembled infested the area 786 | -10/Mines | Found a damaged Exp. Sensor Array with a note attached 787 | -10/Mines | Found Prototype Device 787 | -10/Mines | Identified Exp. Sensor Array 791 | -10/Mines | Assisted by a Guerilla fighting off Assembled 895 | -10/Mines | Entered Subcaves 896 | -10/Subcaves | Approached by a straggling Scientist 896 | -10/Subcaves | Identified exit to Materials 897 | -10/Subcaves | A swath of the cavern ceiling suddenly collapsed 969 | -10/Subcaves | Core integrity fell below 50% 986 | -10/Subcaves | Core integrity fell below 20% 989 | -10/Subcaves | Destroyed by TX-Y35(R) with Subdweller Laser Last Messages --------------- LOCATION=SUBCAVES AMBIENT_HEAT=-10 GOAL=ESCAPE 00896_ 6N-EKG(c): "Thank the algorithms! I was beginning to lose hope I'd never make it past all the Subs lurking out here." Loading 1 Materials entrance... A swath of the cavern ceiling suddenly collapses. 00899_ 6N-EKG(c): "Hey, let me tag along and I can get us both out of this nasty situation. At least I think I can... The group I got separated from was talking about a shortcut back to the UFD." 00960_ TX-Y35(R) knocked back. 00969_ Flight Unit destroyed. 00973_ Hover Unit destroyed. 00975_ TX-Y35(R) knocked back. 00979_ Lgt. Armor Plating destroyed. 00984_ Lgt. Assault Rifle destroyed. Map ----- +----------------------------------------------------+ | | | | | | | | | | | ?????????????????????????????????????????????????? | | ?????????????????????????????????????????????????? | | ?????????????????????????????????????????????????? | | ?????????????????????????????????????????????????? | | ?????????????????????????????????????????????????? | | ?????????????????????????????????????????????????? | | ?????????????????????????????????????????????????? | | ?????????????????????????????????????????????????? | | ?????????????????????????????????????????????????? | | ?????????????????????????????????????????????????? | | ?????????????????????????????????????????????????? | | ?????????????????????????????????????????????????? | | ?????????????????????????????????????????????????? | | ?????????????????????????????????????????????????? | | ??????????????####??????####??????????#####??????? | | ???????????#### #####?## ##?????#### ###????? | | ???????????# R ### ####### ????? | | ??????????#"# ## #?? ##??? | | ??????????#### ##??# #### | | ?????????????# ##R ## ##??# # | | ?????????????# ##### @ ### ###?# # | | ?????????????# #???#### ### ### # | | ?????????????####??????##### ## | | ???????????????????????????# | | ???????????????????????????## | | ????????????????????????????## | | ?????????????????????????????### ## | | ???????????????????????????????# ### | | ???????????????????????????????## ### ## | | ????????????????????????????????#### #? | | ???????????????????????????????????# ##? | | ???????????????????????????????????# ##?? | | ???????????????????????????????????## ##??? | | ????????????????????????????????????## #???# | | ?????????????????????????????????????# ##??## | | ?????????????????????????????????????# #???# | | ????????????????????????????????????? #???## | | ???????????????????????????????????? ##????# | | ???????????????????????????????????? ""##?????# | | ???????????????????????????????????? ""##??????# | | ???????????????????????????????????""""""#???????# | | ???????????????????????????????????" ###???????? | | ?????????????????????????????????? #?????????? | | ??????????????????????????????????? #??????????#? | | ???????????????????????????????????##?????????? ?? | +----------------------------------------------------+ Best States ------------- Heat Dissipation 25 Energy Generation 5 Energy Capacity 100 Matter Stores 300 Matter Capacity 300 Sight Range 16 Robot Scan Range 20 Terrain Scan Density 10 Armor Coverage 150 Evasion (%) 62 Recoil Reduction 2 Offensive Hacking 10 Item Schematics ----------------- None Robot Schematics ------------------ None Fabricated ------------ Nothing Repaired ---------- Nothing Studied --------- None Alien Tech Used ----------------- None Achievements -------------- None Challenges ------------ None Game ------ Seed MiniAmuletFemtoactuators Manual? 0 Play Time 00:16:03 Cumulative 799.0 hours Start 2025.12.17 @ 12:23:07 End 2025.12.17 @ 12:39:10 Sessions 1 Manual Loads 0 Difficulty Rogue Special Mode None Game No. 327 Rogue 327 Adventurer 0 Explorer 0 Win Type - Total 85 Types 43/6/15/6/6/1/1/3/0/4 Lore% 97 Gallery% 91 Achievement% 84 Wizard Run 0 Options --------- Layout 1 ASCII 0 Keyboard 0 Movement Numpad Keybinds 0 Fullscreen 1 Font 24/Smallcaps Map View 50x35 Zoom Use 0% Tactical HUD 1 Map Filters NONE Filters NONE Steam 1 RUN: 90fdaf22-28bb-49ed-bde4-7b4d5e6cc472